[Event "NJSK 2022 Meisjes A&B"]
[Site "Almelo, Netherlands"]
[Date "2022.05.07"]
[Round "7.4"]
[White "Honkoop, Stella"]
[Black "Tangarife Ramirez, Katja"]
[Result "1-0"]
[TimeControl "90min/40moves + 30min + 30sec/move"]
[WhiteElo "1711"]
[BlackElo "1623"]

1. d4 {[%clk 01:30:57]} {[%emt 00:00:02]} d5 {[%clk 01:30:53]} {[%emt
00:00:07]} 2. Bf4 {[%clk 01:31:25]} {[%emt 00:00:03]} Nf6 {[%clk 01:31:16]}
{[%emt 00:00:06]} 3. e3 {[%clk 01:31:47]} {[%emt 00:00:08]} e6 {[%clk
01:31:40]} {[%emt 00:00:06]} 4. Nf3 {[%clk 01:31:48]} {[%emt 00:00:29]} Bd6
{[%clk 01:31:59]} {[%emt 00:00:11]} 5. Bg3 {[%clk 01:32:15]} {[%emt 00:00:03]}
O-O {[%clk 01:32:11]} {[%emt 00:00:19]} 6. Nbd2 {[%clk 01:31:30]} {[%emt
00:01:14]} c5 {[%clk 01:31:48]} {[%emt 00:00:52]} 7. c3 {[%clk 01:31:47]}
{[%emt 00:00:14]} Qc7 {[%clk 01:31:40]} {[%emt 00:00:38]} 8. Ne5 {[%clk
01:30:30]} {[%emt 00:01:46]} Nbd7 {[%clk 01:31:12]} {[%emt 00:00:59]} 9. f4
{[%clk 01:29:44]} {[%emt 00:01:16]} b6 {[%clk 01:28:30]} {[%emt 00:03:12]} 10.
Bd3 {[%clk 01:26:38]} {[%emt 00:03:36]} a5 {[%clk 01:26:43]} {[%emt 00:02:17]}
11. Ndf3 {[%clk 01:13:32]} {[%emt 00:13:36]} Ba6 {[%clk 01:21:03]} {[%emt
00:06:10]} 12. h4 {[%clk 00:52:11]} {[%emt 00:21:50]} Bxd3 {[%clk 01:17:09]}
{[%emt 00:04:25]} 13. Qxd3 {[%clk 00:52:29]} {[%emt 00:00:12]} Ne4 {[%clk
01:13:07]} {[%emt 00:04:31]} 14. Ng5 {[%clk 00:42:06]} {[%emt 00:10:54]} Ndf6
{[%clk 01:12:53]} {[%emt 00:00:44]} 15. Bh2 {[%clk 00:35:40]} {[%emt 00:06:56]}
h6 {[%clk 01:08:46]} {[%emt 00:04:36]} 16. Nh3 {[%clk 00:36:08]} {[%emt
00:00:03]} Bxe5 {[%clk 01:05:29]} {[%emt 00:03:47]} 17. dxe5 {[%clk 00:36:37]}
{[%emt 00:00:02]} Ng4 {[%clk 01:05:28]} {[%emt 00:00:31]} 18. Qe2 {[%clk
00:28:11]} {[%emt 00:08:56]} f5 {[%clk 00:57:10]} {[%emt 00:08:47]} 19. exf6
{[%clk 00:25:11]} {[%emt 00:03:31]} Ngxf6 {[%clk 00:51:34]} {[%emt 00:06:05]}
20. g4 {[%clk 00:24:03]} {[%emt 00:01:39]} Qf7 {[%clk 00:45:25]} {[%emt
00:06:38]} 21. h5 {[%clk 00:22:12]} {[%emt 00:02:22]} Qd7 {[%clk 00:39:02]}
{[%emt 00:06:53]} 22. O-O-O {[%clk 00:15:04]} {[%emt 00:07:38]} e5 {[%clk
00:36:58]} {[%emt 00:02:33]} 23. f5 {[%clk 00:13:04]} {[%emt 00:02:30]} Qe7
{[%clk 00:33:19]} {[%emt 00:04:08]} 24. Rhg1 {[%clk 00:11:36]} {[%emt
00:01:59]} Qe8 {[%clk 00:30:54]} {[%emt 00:02:55]} 25. Rg2 {[%clk 00:07:43]}
{[%emt 00:04:24]} Rd8 {[%clk 00:23:30]} {[%emt 00:07:53]} 26. g5 {[%clk
00:04:57]} {[%emt 00:03:17]} hxg5 {[%clk 00:20:43]} {[%emt 00:03:16]} 27. Nxg5
{[%clk 00:05:23]} {[%emt 00:00:05]} Qxh5 {[%clk 00:18:48]} {[%emt 00:02:24]} 28.
Qxh5 {[%clk 00:05:25]} {[%emt 00:00:28]} Nxh5 {[%clk 00:19:11]} {[%emt
00:00:07]} 29. Ne6 {[%clk 00:05:51]} {[%emt 00:00:05]} Rd7 {[%clk 00:15:03]}
{[%emt 00:04:37]} 30. Nxf8 {[%clk 00:06:15]} {[%emt 00:00:07]} Kxf8 {[%clk
00:15:27]} {[%emt 00:00:06]} 31. Bxe5 {[%clk 00:06:09]} {[%emt 00:00:36]} Rf7
{[%clk 00:14:22]} {[%emt 00:01:35]} 32. Rxd5 {[%clk 00:04:31]} {[%emt
00:02:08]} Rxf5 {[%clk 00:13:44]} {[%emt 00:01:07]} 33. Bd6+ {[%clk 00:04:55]}
{[%emt 00:00:08]} Nxd6 {[%clk 00:13:51]} {[%emt 00:00:22]} 34. Rxd6 {[%clk
00:05:23]} {[%emt 00:00:02]} b5 {[%clk 00:13:28]} {[%emt 00:00:53]} 35. Rd7
{[%clk 00:04:10]} {[%emt 00:01:43]} Ke8 {[%clk 00:11:31]} {[%emt 00:02:27]} 36.
Ra7 {[%clk 00:04:34]} {[%emt 00:00:06]} a4 {[%clk 00:11:37]} {[%emt 00:00:24]}
37. Rb7 {[%clk 00:04:37]} {[%emt 00:00:28]} c4 {[%clk 00:11:44]} {[%emt
00:00:22]} 38. e4 {[%clk 00:02:46]} {[%emt 00:02:21]} Re5 {[%clk 00:11:17]}
{[%emt 00:00:56]} 39. Rg4 {[%clk 00:01:56]} {[%emt 00:01:20]} Kf8 {[%clk
00:10:18]} {[%emt 00:01:28]} 40. Rc7 {[%clk 00:00:36]} {[%emt 00:01:51]} Ke8
{[%clk 00:10:02]} {[%emt 00:00:46]} 41. Rh4 {[%clk 00:29:24]} {[%emt 00:01:42]}
Kd8 {[%clk 00:37:45]} {[%emt 00:02:47]} 42. Ra7 {[%clk 00:27:50]} {[%emt
00:02:05]} Ke8 {[%clk 00:36:28]} {[%emt 00:01:46]} 43. Kd2 {[%clk 00:26:24]}
{[%emt 00:01:57]} Rg5 {[%clk 00:34:44]} {[%emt 00:02:13]} 44. Ke3 {[%clk
00:25:58]} {[%emt 00:00:57]} g6 {[%clk 00:33:52]} {[%emt 00:01:21]} 45. Rh2
{[%clk 00:25:15]} {[%emt 00:01:14]} Rg3+ {[%clk 00:31:31]} {[%emt 00:02:50]} 46.
Kd4 {[%clk 00:24:54]} {[%emt 00:00:52]} 1-0

[Event "NJSK 2022 Meisjes A&B"]
[Site "Almelo, Netherlands"]
[Date "2022.05.07"]
[Round "7.5"]
[White "Venema, Katja"]
[Black "Jonkman, Amelia"]
[Result "1/2-1/2"]
[TimeControl "90min/40moves + 30min + 30sec/move"]
[WhiteElo "1692"]
[BlackElo "1552"]

1. d4 {[%clk 01:30:50]} {[%emt 00:00:09]} Nf6 {[%clk 01:30:50]} {[%emt
00:00:10]} 2. c4 {[%clk 01:31:08]} {[%emt 00:00:11]} g6 {[%clk 01:31:12]}
{[%emt 00:00:09]} 3. Nc3 {[%clk 01:31:27]} {[%emt 00:00:10]} Bg7 {[%clk
01:31:04]} {[%emt 00:00:39]} 4. e4 {[%clk 01:31:31]} {[%emt 00:00:25]} d6
{[%clk 01:31:16]} {[%emt 00:00:19]} 5. Be2 {[%clk 01:31:27]} {[%emt 00:00:34]}
O-O {[%clk 01:30:56]} {[%emt 00:00:50]} 6. Bg5 {[%clk 01:31:26]} {[%emt
00:00:30]} c6 {[%clk 01:21:11]} {[%emt 00:10:16]} 7. Nf3 {[%clk 01:29:09]}
{[%emt 00:02:47]} Qc7 {[%clk 01:15:11]} {[%emt 00:06:30]} 8. O-O {[%clk
01:26:11]} {[%emt 00:03:27]} a6 {[%clk 01:14:12]} {[%emt 00:01:30]} 9. a4
{[%clk 01:24:46]} {[%emt 00:01:55]} a5 {[%clk 01:13:36]} {[%emt 00:01:06]} 10.
Qd2 {[%clk 01:23:22]} {[%emt 00:01:53]} Na6 {[%clk 01:09:35]} {[%emt 00:04:32]}
11. Bh6 {[%clk 01:21:36]} {[%emt 00:02:15]} Nb4 {[%clk 01:07:26]} {[%emt
00:02:40]} 12. Bxg7 {[%clk 01:20:46]} {[%emt 00:01:19]} Kxg7 {[%clk 01:07:29]}
{[%emt 00:00:27]} 13. Ne1 {[%clk 01:18:55]} {[%emt 00:02:21]} e5 {[%clk
01:01:45]} {[%emt 00:06:14]} 14. d5 {[%clk 01:16:25]} {[%emt 00:03:00]} c5
{[%clk 00:55:03]} {[%emt 00:07:13]} 15. f4 {[%clk 01:13:33]} {[%emt 00:03:21]}
Qe7 {[%clk 00:46:35]} {[%emt 00:08:58]} 16. f5 {[%clk 01:09:53]} {[%emt
00:04:09]} Ng8 {[%clk 00:41:33]} {[%emt 00:05:32]} 17. Rf3 {[%clk 01:05:24]}
{[%emt 00:04:59]} gxf5 {[%clk 00:31:12]} {[%emt 00:10:52]} 18. exf5 {[%clk
01:03:37]} {[%emt 00:02:17]} Kh8 {[%clk 00:26:58]} {[%emt 00:04:43]} 19. Ne4
{[%clk 01:00:48]} {[%emt 00:03:19]} f6 {[%clk 00:25:14]} {[%emt 00:02:15]} 20.
Nd3 {[%clk 00:58:18]} {[%emt 00:03:00]} Nxd3 {[%clk 00:20:28]} {[%emt
00:05:16]} 21. Bxd3 {[%clk 00:58:02]} {[%emt 00:00:45]} Rf7 {[%clk 00:19:25]}
{[%emt 00:01:33]} 22. Raf1 {[%clk 00:55:34]} {[%emt 00:02:58]} Rg7 {[%clk
00:17:15]} {[%emt 00:02:41]} 23. Rh3 {[%clk 00:52:27]} {[%emt 00:03:36]} Bd7
{[%clk 00:11:19]} {[%emt 00:06:27]} 24. b3 {[%clk 00:51:02]} {[%emt 00:01:54]}
b6 {[%clk 00:08:31]} {[%emt 00:03:19]} 25. Ng3 {[%clk 00:48:50]} {[%emt
00:02:42]} Rf8 {[%clk 00:06:00]} {[%emt 00:03:01]} 26. Re1 {[%clk 00:46:57]}
{[%emt 00:02:23]} Rg4 {[%clk 00:04:49]} {[%emt 00:01:41]} 27. Qe2 {[%clk
00:43:18]} {[%emt 00:04:08]} Qg7 {[%clk 00:02:58]} {[%emt 00:02:21]} 28. Rf1
{[%clk 00:41:22]} {[%emt 00:02:27]} Ne7 {[%clk 00:01:35]} {[%emt 00:01:53]} 29.
Rh5 {[%clk 00:37:18]} {[%emt 00:04:34]} Rg5 {[%clk 00:01:17]} {[%emt 00:00:48]}
30. Rxg5 {[%clk 00:36:43]} {[%emt 00:01:05]} fxg5 {[%clk 00:00:54]} {[%emt
00:00:53]} 31. Qe4 {[%clk 00:32:19]} {[%emt 00:04:54]} Ng8 {[%clk 00:01:01]}
{[%emt 00:00:23]} 32. Nh5 {[%clk 00:31:19]} {[%emt 00:01:30]} Qh6 {[%clk
00:00:57]} {[%emt 00:00:34]} 33. Ng3 {[%clk 00:30:25]} {[%emt 00:01:23]} Nf6
{[%clk 00:01:12]} {[%emt 00:00:15]} 34. Qe2 {[%clk 00:30:02]} {[%emt 00:00:53]}
Qg7 {[%clk 00:00:54]} {[%emt 00:00:49]} 35. Ne4 {[%clk 00:27:40]} {[%emt
00:02:51]} Nxe4 {[%clk 00:01:02]} {[%emt 00:00:23]} 36. Qxe4 {[%clk 00:27:51]}
{[%emt 00:00:18]} Rf6 {[%clk 00:01:18]} {[%emt 00:00:14]} 37. Qe3 {[%clk
00:26:21]} {[%emt 00:02:01]} h6 {[%clk 00:01:17]} {[%emt 00:00:31]} 38. g4
{[%clk 00:25:18]} {[%emt 00:01:33]} Be8 {[%clk 00:01:09]} {[%emt 00:00:39]} 39.
Be2 {[%clk 00:23:35]} {[%emt 00:02:12]} Bf7 {[%clk 00:01:13]} {[%emt 00:00:26]}
40. Kf2 {[%clk 00:23:26]} {[%emt 00:00:39]} Be8 {[%clk 00:01:05]} {[%emt
00:00:38]} 41. Ke1 {[%clk 00:23:41]} {[%emt 00:00:15]} Bf7 {[%clk 00:22:23]}
{[%emt 00:09:12]} 42. Qg3 {[%clk 00:51:53]} {[%emt 00:02:18]} Kg8 {[%clk
00:19:46]} {[%emt 00:03:07]} 43. Kd2 {[%clk 00:49:36]} {[%emt 00:02:46]} Be8
{[%clk 00:19:22]} {[%emt 00:00:55]} 44. Rh1 {[%clk 00:48:13]} {[%emt 00:01:53]}
Bf7 {[%clk 00:16:43]} {[%emt 00:03:08]} 45. Qe3 {[%clk 00:47:08]} {[%emt
00:01:35]} Be8 {[%clk 00:16:27]} {[%emt 00:00:47]} 46. h4 {[%clk 00:46:57]}
{[%emt 00:00:41]} Bf7 {[%clk 00:10:45]} {[%emt 00:06:12]} 47. Bf3 {[%clk
00:44:43]} {[%emt 00:02:44]} Be8 {[%clk 00:10:23]} {[%emt 00:00:52]} 48. h5
{[%clk 00:43:44]} {[%emt 00:00:55]} 1/2-1/2

[Event "NJSK 2022 Meisjes A&B"]
[Site "Almelo, Netherlands"]
[Date "2022.05.07"]
[Round "7.6"]
[White "Van Essen, Marieke"]
[Black "Wortman, Manixia"]
[Result "1-0"]
[TimeControl "90min/40moves + 30min + 30sec/move"]
[WhiteElo "1728"]
[BlackElo "1432"]

1. e4 {[%clk 01:30:58]} {[%emt 00:00:02]} c5 {[%clk 01:30:55]} {[%emt
00:00:05]} 2. Nf3 {[%clk 01:31:24]} {[%emt 00:00:04]} d6 {[%clk 01:31:19]}
{[%emt 00:00:06]} 3. Bb5+ {[%clk 01:31:47]} {[%emt 00:00:07]} Bd7 {[%clk
01:31:41]} {[%emt 00:00:08]} 4. Bxd7+ {[%clk 01:32:11]} {[%emt 00:00:05]} Nxd7
{[%clk 01:32:07]} {[%emt 00:00:04]} 5. c4 {[%clk 01:32:16]} {[%emt 00:00:25]}
Ngf6 {[%clk 01:32:18]} {[%emt 00:00:19]} 6. Nc3 {[%clk 01:32:37]} {[%emt
00:00:09]} e6 {[%clk 01:32:27]} {[%emt 00:00:22]} 7. O-O {[%clk 01:32:47]}
{[%emt 00:00:20]} Be7 {[%clk 01:32:46]} {[%emt 00:00:10]} 8. d4 {[%clk
01:31:22]} {[%emt 00:01:56]} cxd4 {[%clk 01:32:45]} {[%emt 00:00:31]} 9. Nxd4
{[%clk 01:31:45]} {[%emt 00:00:06]} Rc8 {[%clk 01:32:31]} {[%emt 00:00:44]} 10.
b3 {[%clk 01:31:39]} {[%emt 00:00:36]} Nc5 {[%clk 01:32:23]} {[%emt 00:00:38]}
11. Re1 {[%clk 01:28:11]} {[%emt 00:03:58]} a6 {[%clk 01:31:19]} {[%emt
00:01:36]} 12. f4 {[%clk 01:24:10]} {[%emt 00:04:30]} e5 {[%clk 01:28:45]}
{[%emt 00:03:04]} 13. Nf5 {[%clk 01:20:55]} {[%emt 00:03:45]} O-O {[%clk
01:27:05]} {[%emt 00:02:09]} 14. fxe5 {[%clk 01:20:11]} {[%emt 00:01:14]} dxe5
{[%clk 01:27:19]} {[%emt 00:00:16]} 15. Bg5 {[%clk 01:18:19]} {[%emt 00:02:23]}
Ncd7 {[%clk 01:22:46]} {[%emt 00:05:02]} 16. Nxe7+ {[%clk 01:14:53]} {[%emt
00:03:56]} Qxe7 {[%clk 01:22:45]} {[%emt 00:00:30]} 17. Nd5 {[%clk 01:13:08]}
{[%emt 00:02:16]} Qc5+ {[%clk 01:21:40]} {[%emt 00:01:35]} 18. Be3 {[%clk
01:13:04]} {[%emt 00:00:35]} Qc6 {[%clk 01:21:50]} {[%emt 00:00:21]} 19. Ne7+
{[%clk 01:13:21]} {[%emt 00:00:41]} 1-0

[Event "NJSK 2022 Meisjes A&B"]
[Site "Almelo, Netherlands"]
[Date "2022.05.07"]
[Round "7.7"]
[White "Ganeshram, Nirupa"]
[Black "Mensing, Luana"]
[Result "0-1"]
[TimeControl "90min/40moves + 30min + 30sec/move"]
[WhiteElo "1546"]
[BlackElo "1604"]

1. e4 {[%clk 01:30:58]} {[%emt 00:00:02]} c5 {[%clk 01:30:54]} {[%emt
00:00:06]} 2. Nc3 {[%clk 01:31:20]} {[%emt 00:00:08]} d6 {[%clk 01:31:09]}
{[%emt 00:00:15]} 3. f4 {[%clk 01:31:34]} {[%emt 00:00:15]} Nf6 {[%clk
01:28:24]} {[%emt 00:03:16]} 4. Nf3 {[%clk 01:30:54]} {[%emt 00:01:10]} a6
{[%clk 01:21:28]} {[%emt 00:07:26]} 5. a4 {[%clk 01:16:22]} {[%emt 00:15:01]}
Nc6 {[%clk 01:20:46]} {[%emt 00:01:13]} 6. Bc4 {[%clk 01:15:45]} {[%emt
00:01:06]} e6 {[%clk 01:19:50]} {[%emt 00:01:26]} 7. Ba2 {[%clk 01:09:36]}
{[%emt 00:06:40]} Be7 {[%clk 01:17:29]} {[%emt 00:02:51]} 8. O-O {[%clk
01:09:13]} {[%emt 00:00:53]} Qb6 {[%clk 01:02:12]} {[%emt 00:15:48]} 9. Kh1
{[%clk 01:07:49]} {[%emt 00:01:53]} Ng4 {[%clk 00:48:29]} {[%emt 00:14:13]} 10.
Ne2 {[%clk 00:48:24]} {[%emt 00:19:56]} Nb4 {[%clk 00:29:32]} {[%emt 00:19:27]}
11. Bb1 {[%clk 00:41:25]} {[%emt 00:07:28]} c4 {[%clk 00:24:06]} {[%emt
00:05:57]} 12. Qe1 {[%clk 00:37:47]} {[%emt 00:04:07]} d5 {[%clk 00:06:00]}
{[%emt 00:18:37]} 13. exd5 {[%clk 00:28:18]} {[%emt 00:09:59]} Nxd5 {[%clk
00:06:15]} {[%emt 00:00:15]} 14. Nfd4 {[%clk 00:22:14]} {[%emt 00:06:34]} Bc5
{[%clk 00:01:21]} {[%emt 00:05:24]} 15. c3 {[%clk 00:21:20]} {[%emt 00:01:24]}
O-O {[%clk 00:01:28]} {[%emt 00:00:22]} 16. Qg3 {[%clk 00:19:41]} {[%emt
00:02:09]} Ngf6 {[%clk 00:01:36]} {[%emt 00:00:22]} 17. d3 {[%clk 00:17:50]}
{[%emt 00:02:21]} cxd3 {[%clk 00:01:18]} {[%emt 00:00:48]} 18. Bxd3 {[%clk
00:18:03]} {[%emt 00:00:17]} Bd7 {[%clk 00:01:37]} {[%emt 00:00:12]} 19. f5
{[%clk 00:16:27]} {[%emt 00:02:06]} e5 {[%clk 00:01:06]} {[%emt 00:01:01]} 20.
Bh6 {[%clk 00:13:37]} {[%emt 00:03:20]} Nh5 {[%clk 00:01:28]} {[%emt 00:00:08]}
21. Qg5 {[%clk 00:12:55]} {[%emt 00:01:12]} Qxh6 {[%clk 00:01:42]} {[%emt
00:00:15]} 22. Qxh6 {[%clk 00:12:17]} {[%emt 00:01:08]} gxh6 {[%clk 00:02:08]}
{[%emt 00:00:04]} 23. Nb3 {[%clk 00:10:59]} {[%emt 00:01:48]} Bd6 {[%clk
00:02:13]} {[%emt 00:00:25]} 24. c4 {[%clk 00:09:36]} {[%emt 00:01:54]} Ndf6
{[%clk 00:02:07]} {[%emt 00:00:35]} 25. Nd2 {[%clk 00:08:53]} {[%emt 00:01:13]}
Rfe8 {[%clk 00:02:03]} {[%emt 00:00:35]} 26. Ne4 {[%clk 00:08:39]} {[%emt
00:00:44]} Nxe4 {[%clk 00:01:43]} {[%emt 00:00:49]} 27. Bxe4 {[%clk 00:09:03]}
{[%emt 00:00:06]} Rab8 {[%clk 00:00:58]} {[%emt 00:01:15]} 28. f6 {[%clk
00:09:04]} {[%emt 00:00:29]} Rec8 {[%clk 00:00:50]} {[%emt 00:00:39]} 29. g3
{[%clk 00:09:03]} {[%emt 00:00:31]} Rxc4 {[%clk 00:01:07]} {[%emt 00:00:13]} 30.
Bf3 {[%clk 00:09:19]} {[%emt 00:00:13]} Nxf6 {[%clk 00:01:26]} {[%emt
00:00:11]} 31. Bxb7 {[%clk 00:09:13]} {[%emt 00:00:36]} Rxb7 {[%clk 00:01:08]}
{[%emt 00:00:49]} 32. Rxf6 {[%clk 00:09:33]} {[%emt 00:00:09]} Bc5 {[%clk
00:01:10]} {[%emt 00:00:29]} 33. a5 {[%clk 00:08:02]} {[%emt 00:02:01]} Rxb2
{[%clk 00:01:04]} {[%emt 00:00:35]} 34. Nc1 {[%clk 00:07:21]} {[%emt 00:01:12]}
Bh3 {[%clk 00:01:23]} {[%emt 00:00:11]} 35. Rf2 {[%clk 00:06:50]} {[%emt
00:01:00]} Rxf2 {[%clk 00:01:48]} {[%emt 00:00:05]} 36. Kg1 {[%clk 00:07:14]}
{[%emt 00:00:07]} Rfc2+ {[%clk 00:02:07]} {[%emt 00:00:10]} 37. Kh1 {[%clk
00:07:30]} {[%emt 00:00:14]} Bg2# {[%clk 00:02:31]} {[%emt 00:00:06]} 0-1